fUSD/lending_fUSD_20241223
["ID","MTS","AMOUNT","RATE_DAILY","PERIOD"]
[346444110,1734978646220,-523.05,0.00017456,2]
[346444111,1734978646229,-10720.02523832,0.0001746,2]
[346444112,1734978646239,-566.062,0.000175,2]
[346444113,1734978646248,-96591.48,0.000175,2]
[346444114,1734978646258,-1129.68,0.00017524,2]
[346444115,1734978646268,-2560.34,0.00017524,2]
[346444116,1734978646277,-2539.0,0.00017525,2]
[346444117,1734978646287,-1945.19,0.00017525,2]
[346444118,1734978646298,-4703.96,0.00017525,2]
[346444119,1734978646308,-500.0,0.00017525,2]
[346444120,1734978646317,-754.84,0.00017525,2]
[346444121,1734978646326,-1146.95,0.00017525,2]
[346444122,1734978646336,-5509.2,0.00017525,2]
[346444123,1734978646345,-2512.601421,0.00017525,2]
[346444124,1734978646357,-965.2,0.00017525,2]
[346444125,1734978646367,-2981.019332,0.00017525,2]
[346444126,1734978646376,-10586.33,0.00017525,2]
[346444127,1734978646385,-2837.21,0.00017525,2]
[346444128,1734978646394,-1778.78,0.00017525,2]
[346444129,1734978646403,-4209.53,0.00017525,2]
[346444130,1734978646413,-1059.61,0.00017525,2]
[346444131,1734978646423,-3342.03,0.00017525,2]
[346444132,1734978646432,-5064.18,0.00017525,2]
[346444134,1734978646442,-2379.44,0.00017525,2]
[346444135,1734978646451,-2571.17,0.00017525,2]
[346444136,1734978646461,-1859.42,0.00017525,2]
[346444137,1734978646470,-1990.01,0.00017525,2]
[346444139,1734978646479,-6368.05,0.00017525,2]
[346444141,1734978646489,-20149.54,0.00017525,2]
[346444142,1734978646498,-3975.82,0.00017525,2]
[346444143,1734978646507,-11142.3,0.00017525,2]
[346444144,1734978646517,-3427.85,0.00017525,2]
[346444145,1734978646526,-4960.48,0.00017525,2]
[346444146,1734978646536,-500.0,0.00017525,2]
[346444147,1734978646545,-15401.22,0.00017525,2]
[346444148,1734978646555,-7652.65,0.00017525,2]
[346444149,1734978646564,-6471.68,0.00017525,2]
[346444150,1734978646573,-500.0,0.00017525,2]
[346444151,1734978646583,-2580.84846582,0.00017525,2]
[346444152,1734978646628,-370.04878004,0.00017252,2]
[346444153,1734978646640,-133.29575225,0.00017252,2]
[346444154,1734978646650,-1771.84153418,0.00017525,2]
[346444155,1734978646659,-1905.93,0.00017525,2]
[346444156,1734978646669,-3111.61,0.00017525,2]
[346444157,1734978646678,-2418.70991077,0.00017525,2]
[346444158,1734978647732,-305.73329223,0.00017254,2]
[346444159,1734978647752,-194.26670777,0.00017254,2]
[346444160,1734978647762,-3124.6959325,0.00017525,2]
[346444161,1734978647773,-636.43415673,0.00017525,2]
[346444162,1734978647783,-1368.25941541,0.00017525,2]
[346444163,1734978647797,-342.38583115,0.00017525,2]
[346444164,1734978647808,-342.89261828,0.00017525,2]
[346444165,1734978647819,-419.79,0.00017525,2]
[346444166,1734978647830,-1483.96213516,0.00017525,2]
[346444167,1734978647840,-729.05,0.00017525,2]
[346444168,1734978647850,-3047.47,0.00017525,2]
[346444169,1734978647860,-6294.67,0.00017525,2]
[346444170,1734978647871,-3965.61,0.00017525,2]
[346444171,1734978647881,-2654.80090923,0.00017525,2]
[346444172,1734978647893,-1373.09909077,0.00017525,2]
[346444173,1734978647903,-4202.78,0.00017525,2]
[346444174,1734978647912,-3139.47,0.00017525,2]
[346444175,1734978647922,-500.0,0.00017525,2]
[346444176,1734978647932,-7192.13,0.00017525,2]
[346444177,1734978647942,-500.0,0.00017525,2]
[346444178,1734978647951,-1772.45,0.00017525,2]
[346444179,1734978647961,-1189.23,0.00017525,2]
[346444180,1734978647971,-3399.0,0.00017525,2]
[346444181,1734978647980,-957.62,0.00017525,2]
[346444182,1734978647990,-500.0,0.00017525,2]
[346444183,1734978647999,-500.0,0.00017525,2]
[346444184,1734978648009,-2849.11653847,0.00017525,2]
[346444185,1734978648024,-1275.22346153,0.00017525,2]
[346444186,1734978648033,-418.6130982,0.00017525,2]
[346444187,1734978649048,-648.4,0.00017251,2]
[346444188,1734978649058,-500.0,0.00017252,2]
[346444189,1734978649068,-536.5569018,0.00017525,2]
[346444190,1734978649077,-531.49,0.00017525,2]
[346444191,1734978649087,-648.4,0.00017525,2]
[346444192,1734978649159,-657.04,0.00017526,2]
[346444193,1734978649168,-910.82,0.00017526,2]
[346444194,1734978649178,-500.0,0.00017526,2]
[346444195,1734978649187,-780.93,0.00017526,2]
[346444196,1734978649197,-500.0,0.00017526,2]
[346444197,1734978649206,-500.0,0.00017526,2]
[346444198,1734978649217,-500.0,0.00017526,2]
[346444199,1734978649226,-500.0,0.00017526,2]
[346444200,1734978649236,-500.0,0.00017526,2]
[346444201,1734978649246,-500.0,0.00017526,2]
[346444202,1734978649255,-754.48,0.00017526,2]
[346444203,1734978649265,-500.0,0.00017526,2]
[346444204,1734978649274,-500.0,0.00017526,2]
[346444205,1734978649284,-871.91,0.00017526,2]
[346444206,1734978649293,-500.0,0.00017526,2]
[346444207,1734978649303,-549.04,0.00017526,2]
[346444208,1734978649313,-500.0,0.00017526,2]
[346444209,1734978649322,-1105.47,0.00017526,2]
[346444210,1734978649332,-965.45,0.00017526,2]
[346444211,1734978649341,-878.87,0.00017526,2]
[346444212,1734978649351,-500.0,0.00017526,2]
[346444213,1734978649361,-500.0,0.00017526,2]
[346444214,1734978649371,-500.0,0.00017526,2]
[346444215,1734978649381,-544.31692288,0.00017526,2]
[346444216,1734978649391,-599.26,0.00017526,2]
[346444217,1734978649400,-576.89,0.00017526,2]
[346444218,1734978649409,-936.3,0.00017526,2]
[346444219,1734978649419,-561.68,0.00017526,2]
[346444220,1734978649428,-500.0,0.00017526,2]
[346444221,1734978649438,-500.0,0.00017526,2]
[346444222,1734978649447,-500.0,0.00017526,2]
[346444223,1734978649456,-761.96,0.00017526,2]
[346444224,1734978649466,-1011.78,0.00017526,2]
[346444225,1734978649475,-783.27,0.00017526,2]
[346444226,1734978649485,-537.31,0.00017526,2]
[346444227,1734978649495,-595.36252493,0.00017526,2]
[346444228,1734978649507,-521.15,0.00017526,2]
[346444229,1734978649519,-500.0,0.00017526,2]
[346444230,1734978649532,-500.0,0.00017526,2]
[346444231,1734978649544,-500.0,0.00017526,2]
[346444232,1734978649555,-500.0,0.00017526,2]
[346444233,1734978649568,-500.0,0.00017526,2]
[346444234,1734978649579,-500.0,0.00017526,2]
[346444235,1734978649589,-558.0,0.00017526,2]
[346444236,1734978649598,-500.0,0.00017526,2]
[346444237,1734978649608,-500.0,0.00017526,2]
[346444238,1734978649617,-500.0,0.00017526,2]
[346444239,1734978649628,-500.0,0.00017526,2]
[346444240,1734978649637,-500.0,0.00017526,2]
[346444241,1734978649646,-554.32827349,0.00017526,2]
[346444242,1734978649655,-609.08,0.00017526,2]
[346444243,1734978649664,-500.0,0.00017526,2]
[346444244,1734978649673,-500.0,0.00017526,2]
[346444245,1734978649683,-500.0,0.00017526,2]
[346444246,1734978649692,-532.62,0.00017526,2]
[346444247,1734978649702,-1124.95,0.00017526,2]
[346444248,1734978649711,-332.89867614,0.00017526,2]
[346444249,1734978649720,-760.69,0.00017526,2]
[346444250,1734978649729,-500.0,0.00017526,2]
[346444251,1734978649739,-500.0,0.00017526,2]
[346444252,1734978649749,-1146.03,0.00017526,2]
[346444253,1734978649758,-500.0,0.00017526,2]
[346444254,1734978649768,-634.76,0.00017526,2]
[346444255,1734978649778,-803.4,0.00017526,2]
[346444256,1734978649788,-509.1,0.00017526,2]
[346444257,1734978649799,-500.0,0.00017526,2]
[346444258,1734978649808,-500.0,0.00017526,2]
[346444259,1734978649818,-500.0,0.00017526,2]
[346444260,1734978649827,-726.23,0.00017526,2]
[346444261,1734978649838,-500.0,0.00017526,2]
[346444262,1734978649847,-1224.18,0.00017526,2]
[346444263,1734978649857,-500.0,0.00017526,2]
[346444264,1734978649869,-200.0,0.00017526,2]
[346444265,1734978649878,-585.62,0.00017526,2]
[346444266,1734978649888,-500.0,0.00017526,2]
[346444267,1734978649898,-648.56,0.00017526,2]
[346444268,1734978649907,-1203.6,0.00017526,2]
[346444269,1734978649917,-682.09,0.00017526,2]
[346444270,1734978649926,-500.0,0.00017526,2]
[346444271,1734978649935,-500.0,0.00017526,2]
[346444272,1734978649944,-704.81,0.00017526,2]
[346444273,1734978649954,-500.0,0.00017526,2]
[346444274,1734978649963,-851.14,0.00017526,2]
[346444275,1734978649973,-500.0,0.00017526,2]
[346444276,1734978649982,-500.0,0.00017526,2]
[346444277,1734978649992,-829.33,0.00017526,2]
[346444278,1734978650001,-500.0,0.00017526,2]
[346444279,1734978650010,-500.0,0.00017526,2]
[346444280,1734978650019,-500.0,0.00017526,2]
[346444281,1734978650028,-1730.94,0.00017526,2]
[346444282,1734978650038,-987.09,0.00017526,2]
[346444283,1734978650047,-500.0,0.00017526,2]
[346444284,1734978650056,-617.75,0.00017526,2]
[346444285,1734978650065,-500.0,0.00017526,2]
[346444286,1734978650075,-544.86,0.00017526,2]
[346444287,1734978650084,-500.0,0.00017526,2]
[346444288,1734978650093,-1215.98,0.00017526,2]
[346444289,1734978650102,-962.68,0.00017526,2]
[346444290,1734978650112,-1064.21,0.00017526,2]
[346444291,1734978650121,-765.32,0.00017526,2]
[346444292,1734978650130,-500.0,0.00017526,2]
[346444293,1734978650140,-2019.51,0.00017526,2]
[346444294,1734978650149,-500.0,0.00017526,2]
[346444295,1734978650159,-500.0,0.00017526,2]
[346444296,1734978650169,-800.98,0.00017526,2]
[346444297,1734978650177,-500.0,0.00017526,2]
[346444298,1734978650187,-1781.22,0.00017526,2]
[346444299,1734978650196,-786.83,0.00017526,2]
[346444300,1734978650205,-777.03,0.00017526,2]
[346444301,1734978650215,-500.0,0.00017526,2]
[346444302,1734978650224,-2048.77,0.00017526,2]
[346444303,1734978650233,-500.0,0.00017526,2]
[346444304,1734978650242,-806.0,0.00017526,2]
[346444305,1734978650251,-500.0,0.00017526,2]
[346444306,1734978650260,-1317.36,0.00017526,2]
[346444307,1734978650270,-500.0,0.00017526,2]
[346444308,1734978650279,-500.0,0.00017526,2]
[346444309,1734978650289,-500.0,0.00017526,2]
[346444310,1734978650299,-1102.39,0.00017526,2]
[346444311,1734978650308,-500.0,0.00017526,2]
[346444312,1734978650318,-1539.45,0.00017526,2]
[346444313,1734978650327,-886.31,0.00017526,2]
[346444314,1734978650336,-934.27,0.00017526,2]
[346444315,1734978650346,-1067.46,0.00017526,2]
[346444316,1734978650355,-504.22,0.00017526,2]
[346444317,1734978650365,-500.0,0.00017526,2]
[346444318,1734978650374,-1887.18,0.00017526,2]
[346444319,1734978650383,-500.0,0.00017526,2]
[346444320,1734978650394,-500.0,0.00017526,2]
[346444321,1734978650404,-500.0,0.00017526,2]
[346444322,1734978650413,-500.0,0.00017526,2]
[346444323,1734978650422,-772.27,0.00017526,2]
[346444324,1734978650432,-706.47,0.00017526,2]
[346444325,1734978650441,-2041.27,0.00017526,2]
[346444326,1734978650450,-500.0,0.00017526,2]
[346444327,1734978650459,-712.24,0.00017526,2]
[346444328,1734978650469,-500.0,0.00017526,2]
[346444329,1734978650479,-875.17,0.00017526,2]
[346444330,1734978650488,-500.0,0.00017526,2]
[346444331,1734978650497,-500.0,0.00017526,2]
[346444332,1734978650506,-569.32,0.00017526,2]
[346444333,1734978650515,-996.92,0.00017526,2]
[346444334,1734978650525,-500.0,0.00017526,2]
[346444335,1734978650534,-609.5,0.00017526,2]
[346444336,1734978650543,-500.0,0.00017526,2]
[346444337,1734978650553,-500.0,0.00017526,2]
[346444338,1734978650562,-686.16,0.00017526,2]
[346444339,1734978650571,-2147.75,0.00017526,2]
[346444340,1734978650580,-655.52,0.00017526,2]
[346444341,1734978650589,-178.53437691,0.00017526,2]
[346444342,1734978650599,-500.0,0.00017526,2]
[346444343,1734978650609,-502.14279679,0.00017526,2]
[346444344,1734978650618,-627.09,0.00017526,2]
[346444345,1734978650628,-500.0,0.00017526,2]
[346444346,1734978650637,-500.0,0.00017526,2]
[346444347,1734978650647,-500.0,0.00017526,2]
[346444348,1734978650657,-1118.43,0.00017526,2]
[346444349,1734978650667,-500.0,0.00017526,2]
[346444350,1734978650676,-500.0,0.00017526,2]
[346444351,1734978650686,-1978.43,0.00017526,2]
[346444352,1734978650695,-1473.13,0.00017526,2]
[346444353,1734978650705,-500.0,0.00017526,2]
[346444354,1734978650714,-500.0,0.00017526,2]
[346444355,1734978650723,-500.0,0.00017526,2]
[346444356,1734978650733,-500.0,0.00017526,2]
[346444357,1734978650743,-512.27,0.00017526,2]
[346444358,1734978650752,-935.2,0.00017526,2]
[346444359,1734978650762,-500.0,0.00017526,2]
[346444360,1734978650771,-500.0,0.00017526,2]
[346444361,1734978650781,-507.46,0.00017526,2]
[346444362,1734978650794,-500.0,0.00017526,2]
[346444363,1734978650803,-500.0,0.00017526,2]
[346444364,1734978650812,-1387.97,0.00017526,2]
[346444365,1734978650821,-500.0,0.00017526,2]
[346444366,1734978650831,-500.0,0.00017526,2]
[346444367,1734978650840,-714.91,0.00017526,2]
[346444368,1734978650848,-500.0,0.00017526,2]
[346444369,1734978650859,-728.62,0.00017526,2]
[346444370,1734978650869,-500.0,0.00017526,2]
[346444371,1734978650878,-500.0,0.00017526,2]
[346444372,1734978650887,-845.29,0.00017526,2]
[346444373,1734978650896,-1713.86,0.00017526,2]
[346444374,1734978650905,-500.0,0.00017526,2]
[346444375,1734978650914,-500.0,0.00017526,2]
[346444376,1734978650923,-1195.09,0.00017526,2]
[346444377,1734978650931,-509.57078907,0.00017526,2]
[346444378,1734978650940,-620.18,0.00017526,2]
[346444379,1734978650950,-500.0,0.00017526,2]
[346444380,1734978650959,-827.2,0.00017526,2]
[346444381,1734978650968,-972.52,0.00017526,2]
[346444382,1734978650976,-500.0,0.00017526,2]
[346444383,1734978650986,-1447.08,0.00017526,2]
[346444384,1734978650996,-536.58,0.00017526,2]
[346444385,1734978651005,-500.0,0.00017526,2]
[346444386,1734978651014,-867.24,0.00017526,2]
[346444387,1734978651024,-500.0,0.00017526,2]
[346444388,1734978651033,-500.0,0.00017526,2]
[346444389,1734978651042,-500.0,0.00017526,2]
[346444390,1734978651051,-1763.62,0.00017526,2]
[346444391,1734978651059,-500.0,0.00017526,2]
[346444392,1734978651068,-500.0,0.00017526,2]
[346444393,1734978651077,-500.0,0.00017526,2]
[346444394,1734978651086,-552.74,0.00017526,2]
[346444395,1734978651095,-500.0,0.00017526,2]
[346444396,1734978651104,-500.0,0.00017526,2]
[346444397,1734978651116,-500.0,0.00017526,2]
[346444398,1734978651125,-654.46,0.00017526,2]
[346444399,1734978651133,-734.14,0.00017526,2]
[346444400,1734978651142,-510.47,0.00017526,2]
[346444401,1734978651151,-887.95,0.00017526,2]
[346444402,1734978651161,-500.0,0.00017526,2]
[346444403,1734978651170,-1152.51,0.00017526,2]
[346444404,1734978651179,-500.0,0.00017526,2]
[346444405,1734978651188,-500.0,0.00017526,2]
[346444406,1734978651197,-909.05,0.00017526,2]
[346444407,1734978651206,-500.0,0.00017526,2]
[346444408,1734978651216,-1761.62,0.00017526,2]
[346444409,1734978651225,-899.36,0.00017526,2]
[346444410,1734978651235,-500.0,0.00017526,2]
[346444411,1734978651245,-508.29,0.00017526,2]
[346444412,1734978651254,-500.0,0.00017526,2]
[346444413,1734978651263,-578.67,0.00017526,2]
[346444414,1734978651272,-500.0,0.00017526,2]
[346444415,1734978651280,-729.45,0.00017526,2]
[346444416,1734978651289,-1338.46,0.00017526,2]
[346444417,1734978651299,-11804.3,0.00017526,2]
[346444418,1734978651308,-500.0,0.00017526,2]
[346444419,1734978651317,-1458.56,0.00017526,2]
[346444420,1734978651326,-500.0,0.00017526,2]
[346444421,1734978651335,-580.02,0.00017526,2]
[346444422,1734978651344,-500.0,0.00017526,2]
[346444423,1734978651354,-515.25,0.00017526,2]
[346444424,1734978651364,-629.64,0.00017526,2]
[346444425,1734978651372,-1382.51,0.00017526,2]
[346444426,1734978651381,-500.0,0.00017526,2]
[346444427,1734978651390,-3317.06,0.00017526,2]
[346444428,1734978651399,-2350.66,0.00017526,2]
[346444429,1734978651409,-500.0,0.00017526,2]
[346444430,1734978651418,-12992.23,0.00017526,2]
[346444431,1734978651427,-11524.15,0.00017526,2]
[346444432,1734978651436,-531.16,0.00017526,2]
[346444433,1734978651444,-606.93,0.00017526,2]
[346444434,1734978651454,-1071.93,0.00017526,2]
[346444435,1734978651463,-500.0,0.00017526,2]
[346444436,1734978651472,-500.0,0.00017526,2]
[346444437,1734978651481,-9634.95,0.00017526,2]
[346444438,1734978651490,-500.0,0.00017526,2]
[346444439,1734978651500,-3398.3,0.00017526,2]
[346444440,1734978651508,-2729.81,0.00017526,2]
[346444441,1734978651518,-500.0,0.00017526,2]
[346444442,1734978651528,-3960.41,0.00017526,2]
[346444443,1734978651539,-1221.95,0.00017526,2]
[346444444,1734978651554,-563.5,0.00017526,2]
[346444445,1734978651563,-1102.98,0.00017526,2]
[346444446,1734978651574,-1186.3,0.00017526,2]
[346444447,1734978651585,-500.0,0.00017526,2]
[346444448,1734978651599,-1007.87,0.00017526,2]
[346444449,1734978651609,-1155.29,0.00017526,2]
[346444450,1734978651618,-500.0,0.00017526,2]
[346444451,1734978651626,-6554.24,0.00017526,2]
[346444452,1734978651636,-1893.09,0.00017526,2]
[346444453,1734978651644,-500.0,0.00017526,2]
[346444454,1734978651653,-4918.37,0.00017526,2]
[346444455,1734978651662,-4710.73,0.00017526,2]
[346444456,1734978651671,-877.87,0.00017526,2]
[346444457,1734978651680,-500.0,0.00017526,2]
[346444458,1734978651691,-500.0,0.00017526,2]
[346444459,1734978651700,-1261.02,0.00017526,2]
[346444460,1734978651709,-18150.48,0.00017526,2]
[346444461,1734978651718,-680.33,0.00017526,2]
[346444462,1734978651727,-1754.49,0.00017526,2]
[346444463,1734978651736,-830.04,0.00017526,2]
[346444464,1734978651745,-4272.01,0.00017526,2]
[346444465,1734978651754,-511.31,0.00017526,2]
[346444466,1734978651763,-9521.29,0.00017526,2]
[346444467,1734978651772,-1056.0,0.00017526,2]
[346444468,1734978651781,-500.0,0.00017526,2]
[346444469,1734978651793,-1163.4,0.00017526,2]
[346444470,1734978651802,-500.0,0.00017526,2]
[346444471,1734978651811,-620.92,0.00017526,2]
[346444472,1734978651820,-837.0,0.00017526,2]
[346444473,1734978651829,-500.0,0.00017526,2]
[346444474,1734978651840,-500.0,0.00017526,2]
[346444475,1734978651849,-500.0,0.00017526,2]
[346444476,1734978651859,-3598.24,0.00017526,2]
[346444477,1734978651869,-500.0,0.00017526,2]
[346444478,1734978651879,-279.33960672,0.00017526,2]
[346444479,1734978651887,-4095.47,0.00017526,2]
[346444480,1734978651897,-2240.74,0.00017526,2]
[346444481,1734978651906,-500.0,0.00017526,2]
[346444482,1734978651915,-500.0,0.00017526,2]
[346444483,1734978651924,-9046.78,0.00017526,2]
[346444484,1734978651933,-500.0,0.00017526,2]
[346444485,1734978651942,-845.75,0.00017526,2]
[346444486,1734978651951,-8536.8,0.00017526,2]
[346444487,1734978651960,-500.0,0.00017526,2]
[346444488,1734978651968,-500.0,0.00017526,2]
[346444489,1734978651978,-500.0,0.00017526,2]
[346444490,1734978651987,-7932.71,0.00017526,2]
[346444491,1734978651995,-1057.98,0.00017526,2]
[346444492,1734978652005,-673.74,0.00017526,2]
[346444493,1734978652014,-500.0,0.00017526,2]
[346444494,1734978652023,-2368.75,0.00017526,2]
[346444495,1734978652032,-749.57,0.00017526,2]
[346444496,1734978652041,-500.0,0.00017526,2]
[346444497,1734978652050,-500.0,0.00017526,2]
[346444498,1734978652059,-500.0,0.00017526,2]
[346444499,1734978652068,-2431.85,0.00017526,2]
[346444500,1734978652077,-500.0,0.00017526,2]
[346444501,1734978652086,-500.0,0.00017526,2]
[346444502,1734978652095,-2257.43,0.00017526,2]
[346444503,1734978652103,-2171.69,0.00017526,2]
[346444504,1734978652113,-979.88,0.00017526,2]
[346444505,1734978652122,-500.0,0.00017526,2]
[346444506,1734978652131,-2395.48,0.00017526,2]
[346444507,1734978652141,-600.73,0.00017526,2]
[346444508,1734978652150,-3244.26,0.00017526,2]
[346444509,1734978652159,-500.0,0.00017526,2]
[346444510,1734978652169,-9029.13,0.00017526,2]
[346444511,1734978652179,-1276.39,0.00017526,2]
[346444512,1734978652188,-500.0,0.00017526,2]
[346444513,1734978652196,-2787.63,0.00017526,2]
[346444514,1734978652206,-947.67,0.00017526,2]
[346444515,1734978652215,-500.0,0.00017526,2]
[346444516,1734978652224,-1660.66,0.00017526,2]
[346444517,1734978652233,-1443.8,0.00017526,2]
[346444518,1734978652242,-500.0,0.00017526,2]
[346444519,1734978652251,-705.73,0.00017526,2]
[346444520,1734978652260,-500.0,0.00017526,2]
[346444521,1734978652270,-500.0,0.00017526,2]
[346444522,1734978652279,-678.52,0.00017526,2]
[346444523,1734978652288,-500.0,0.00017526,2]
[346444524,1734978652297,-500.0,0.00017526,2]
[346444525,1734978652307,-2836.82,0.00017526,2]
[346444526,1734978652316,-500.0,0.00017526,2]
[346444527,1734978652325,-1291.97,0.00017526,2]
[346444528,1734978652334,-1000.96,0.00017526,2]
[346444529,1734978652343,-2196.84,0.00017526,2]
[346444530,1734978652353,-3121.83,0.00017526,2]
[346444531,1734978652363,-500.0,0.00017526,2]
[346444532,1734978652372,-500.0,0.00017526,2]
[346444533,1734978652381,-2137.27,0.00017526,2]
[346444534,1734978652390,-500.0,0.00017526,2]
[346444535,1734978652399,-1166.62,0.00017526,2]
[346444536,1734978652407,-3486.65,0.00017526,2]
[346444537,1734978652417,-635.2,0.00017526,2]
[346444538,1734978652425,-3006.95,0.00017526,2]
[346444539,1734978652434,-1026.18,0.00017526,2]
[346444540,1734978652443,-2261.13,0.00017526,2]
[346444541,1734978652452,-1264.37,0.00017526,2]
[346444542,1734978652461,-3361.76,0.00017526,2]
[346444543,1734978652470,-500.0,0.00017526,2]
[346444544,1734978652479,-4260.52,0.00017526,2]
[346444545,1734978652488,-1188.9,0.00017526,2]
[346444546,1734978652497,-2507.05,0.00017526,2]
[346444547,1734978652506,-506.24788827,0.00017526,2]
[346444548,1734978652515,-951.49,0.00017526,2]
[346444549,1734978652524,-595.42,0.00017526,2]
[346444550,1734978652533,-152.6435899,0.00017526,2]
[346444551,1734978652542,-3889.26,0.00017526,2]
[346444552,1734978652551,-3887.87,0.00017526,2]
[346444553,1734978652559,-500.0,0.00017526,2]
[346444554,1734978652568,-829.35401626,0.00017526,2]
[346444555,1734978652577,-1619.85,0.00017527,2]
[346444556,1734978652586,-1790.76,0.00017527,2]
[346444557,1734978652595,-500.0,0.00017527,2]
[346444558,1734978652604,-500.0,0.00017527,2]
[346444559,1734978652614,-500.0,0.00017527,2]
[346444560,1734978652623,-607.78,0.00017527,2]
[346444561,1734978652632,-2132.87,0.00017527,2]
[346444562,1734978652642,-500.0,0.00017527,2]
[346444563,1734978652651,-707.26,0.00017527,2]
[346444564,1734978652660,-2977.53,0.00017527,2]
[346444565,1734978652670,-513.87,0.00017527,2]
[346444566,1734978652679,-2986.12,0.00017527,2]
[346444567,1734978652688,-1647.72,0.00017527,2]
[346444568,1734978652698,-2163.08,0.00017527,2]
[346444569,1734978652707,-500.0,0.00017527,2]
[346444570,1734978652715,-2086.11,0.00017527,2]
[346444571,1734978652725,-1457.24,0.00017527,2]
[346444572,1734978652734,-2392.78,0.00017527,2]
[346444573,1734978652743,-621.82,0.00017527,2]
[346444574,1734978652752,-1977.51,0.00017527,2]
[346444575,1734978652761,-1670.72,0.00017527,2]
[346444576,1734978652770,-1704.71,0.00017527,2]
[346444577,1734978652779,-500.0,0.00017527,2]
[346444578,1734978652790,-1336.76,0.00017527,2]
[346444579,1734978652799,-500.0,0.00017527,2]
[346444580,1734978652808,-2311.39,0.00017527,2]
[346444581,1734978652817,-682.47,0.00017527,2]
[346444582,1734978652826,-1130.32,0.00017527,2]
[346444583,1734978652837,-1672.58,0.00017527,2]
[346444584,1734978652847,-2328.77,0.00017527,2]
[346444585,1734978652856,-1023.41,0.00017527,2]
[346444586,1734978652869,-500.0,0.00017527,2]
[346444587,1734978652878,-1799.1,0.00017527,2]
[346444588,1734978652887,-1146.37,0.00017527,2]
[346444589,1734978652896,-1419.11,0.00017527,2]
[346444590,1734978652905,-1775.75,0.00017527,2]
[346444591,1734978652915,-1306.09,0.00017527,2]
[346444592,1734978652924,-1162.9,0.00017527,2]
[346444593,1734978652934,-2365.08,0.00017527,2]
[346444594,1734978652944,-846.42,0.00017527,2]
[346444595,1734978652953,-1327.47,0.00017527,2]
[346444596,1734978652962,-626.76,0.00017527,2]
[346444597,1734978652972,-626.76,0.00017527,2]
[346444598,1734978652982,-1195.16,0.00017527,2]
[346444599,1734978652991,-6170.91,0.00017527,2]
[346444600,1734978653001,-1107.4,0.00017527,2]
[346444601,1734978653010,-1151.37,0.00017527,2]
[346444602,1734978653020,-2634.04,0.00017527,2]
[346444603,1734978653030,-3708.84,0.00017527,2]
[346444604,1734978653039,-869.4,0.00017527,2]
[346444605,1734978653048,-1328.16,0.00017527,2]
[346444606,1734978653057,-1765.0,0.00017527,2]
[346444607,1734978653066,-1736.97,0.00017527,2]
[346444608,1734978653075,-2565.18,0.00017527,2]
[346444609,1734978653085,-1068.42,0.00017527,2]
[346444610,1734978653094,-500.0,0.00017527,2]
[346444611,1734978653103,-636.19,0.00017527,2]
[346444612,1734978653113,-7806.22,0.00017527,2]